fUST/lending_fUST_20250627
["ID","MTS","AMOUNT","RATE_DAILY","PERIOD"]
[367893286,1750956640704,-4340.28838817,0.00018762,2]
[367893287,1750956640713,-666.0,0.00018978,2]
[367893288,1750956640722,-151.66540298,0.00018978,2]
[367893289,1750956640731,-207.4,0.00018978,2]
[367893290,1750956640742,-5000.0,0.00018978,2]
[367893291,1750956640751,-500.0,0.00018978,2]
[367893292,1750956640760,-500.0,0.00018978,2]
[367893293,1750956640770,-500.0,0.00018978,2]
[367893294,1750956640780,-500.0,0.00018978,2]
[367893295,1750956640789,-500.0,0.00018978,2]
[367893296,1750956640799,-500.0,0.00018978,2]
[367893297,1750956640808,-500.0,0.00018978,2]
[367893298,1750956640817,-1245.65133483,0.00018978,2]
[367893299,1750956640826,-500.0,0.00018978,2]
[367893300,1750956640835,-500.0,0.00018978,2]
[367893301,1750956640845,-200.0,0.00018978,2]
[367893302,1750956640855,-500.0,0.00018978,2]
[367893303,1750956640864,-500.0,0.00018978,2]
[367893304,1750956640876,-200.0,0.00018978,2]
[367893305,1750956640885,-500.0,0.00018978,2]
[367893306,1750956640894,-200.0,0.00018978,2]
[367893307,1750956640903,-500.0,0.00018978,2]
[367893308,1750956640913,-200.0,0.00018978,2]
[367893309,1750956640922,-500.0,0.00018978,2]
[367893310,1750956640931,-200.0,0.00018978,2]
[367893311,1750956640940,-500.0,0.00018978,2]
[367893312,1750956640951,-200.0,0.00018978,2]
[367893313,1750956640959,-500.0,0.00018978,2]
[367893314,1750956640968,-200.0,0.00018978,2]
[367893315,1750956640978,-151.0,0.00018978,2]
[367893316,1750956640987,-200.0,0.00018978,2]
[367893317,1750956640996,-151.0,0.00018978,2]
[367893318,1750956641005,-500.0,0.00018978,2]
[367893319,1750956641015,-200.0,0.00018978,2]
[367893320,1750956641023,-198.0,0.00018978,2]
[367893321,1750956641033,-200.0,0.00018978,2]
[367893322,1750956641042,-500.0,0.00018978,2]
[367893323,1750956641052,-200.0,0.00018978,2]
[367893324,1750956641061,-500.0,0.00018978,2]
[367893325,1750956641070,-500.0,0.00018978,2]
[367893327,1750956641079,-200.0,0.00018978,2]
[367893328,1750956641088,-500.0,0.00018978,2]
[367893330,1750956641098,-200.0,0.00018978,2]
[367893331,1750956641107,-200.0,0.00018978,2]
[367893332,1750956641116,-200.0,0.00018978,2]
[367893334,1750956641126,-200.0,0.00018978,2]
[367893336,1750956641135,-200.0,0.00018978,2]
[367893338,1750956641144,-200.0,0.00018978,2]
[367893340,1750956641153,-25000.0,0.00018978,2]
[367893342,1750956641163,-10854.55089009,0.00018978,2]
[367893344,1750956641172,-690.642,0.00019033,2]
[367893346,1750956641181,-4340.28838817,0.00019072,2]
[367893348,1750956641191,-456.66634739,0.00019088,2]
[367893350,1750956641200,-151.0,0.000191,2]
[367893352,1750956641209,-151.0,0.000191,2]
[367893354,1750956641218,-500.0,0.00019178,2]
[367893357,1750956641228,-500.0,0.00019178,2]
[367893359,1750956641237,-647.25038,0.00019178,2]
[367893361,1750956641246,-265.191967,0.00019178,2]
[367893362,1750956641256,-29022.9130628,0.00019178,2]
[367893364,1750956641266,-4340.28838817,0.00019383,2]
[367893366,1750956641275,-587.0,0.0001944,2]
[367893368,1750956641284,-587.0,0.0001944,2]
[367893370,1750956641294,-202.0,0.00019492,2]
[367893373,1750956641303,-389063.7434,0.00019525,2]
[367893375,1750956641312,-5000.0,0.00019526,2]
[367893377,1750956641321,-25000.0,0.00019526,2]
[367893379,1750956641330,-4340.28838817,0.00019693,2]
[367893381,1750956641339,-151.0,0.000197,2]
[367893383,1750956641349,-151.0,0.000197,2]
[367893385,1750956641359,-662.176,0.0001999,2]
[367893386,1750956641369,-302.98837523,0.0002,2]
[367893389,1750956641380,-4340.28838817,0.00020003,2]
[367893391,1750956641391,-5000.0,0.00020074,2]
[367893393,1750956641402,-1235.38339822,0.000201,2]
[367893395,1750956641415,-300.433246,0.00020187,2]
[367893397,1750956641424,-151.0,0.000203,3]
[367893399,1750956641433,-151.0,0.000203,4]
[367893401,1750956641443,-12560.17507789,0.000203,3]
[367893403,1750956641453,-4340.28838817,0.00020314,3]
[367893405,1750956641462,-215.0738,0.00020347,2]
[367893407,1750956641471,-202.0,0.00020599,2]
[367893409,1750956641480,-3484.66,0.000206,2]
[367893411,1750956641490,-5000.0,0.00020622,2]
[367893413,1750956641499,-4340.28838817,0.00020624,3]
[367893415,1750956641509,-202.0,0.00020686,2]
[367893417,1750956641518,-202.0,0.00020876,2]
[367893419,1750956641527,-151.0,0.000209,3]
[367893421,1750956641537,-151.0,0.000209,4]
[367893423,1750956641547,-151.0,0.000209,4]
[367893425,1750956641556,-4340.28838817,0.00020934,4]
[367893427,1750956641565,-202.0,0.00020999,2]
[367893429,1750956641574,-5000.0,0.0002117,2]
[367893431,1750956641583,-4340.28838817,0.00021245,4]
[367893433,1750956641592,-823.0,0.00021249,2]
[367893435,1750956641601,-823.0,0.00021249,2]
[367893437,1750956641610,-966.0,0.00021287,2]
[367893439,1750956641619,-2161.0,0.00021287,2]
[367893441,1750956641629,-654.0,0.00021287,2]
[367893443,1750956641639,-406.0,0.00021287,2]
[367893445,1750956641648,-1363.240215,0.00021382,4]
[367893447,1750956641658,-202.0,0.00021395,2]
[367893449,1750956641667,-151.0,0.000214,4]
[367893451,1750956641677,-151.0,0.000214,4]
[367893453,1750956641686,-151.0,0.000214,3]
[367893455,1750956641695,-151.0,0.000214,3]
[367893457,1750956641704,-202.0,0.00021443,2]
[367893459,1750956641713,-2200.0,0.00021517,2]
[367893461,1750956641723,-360.44557691,0.00021547,2]
[367893463,1750956641731,-4340.28838817,0.00021555,5]
[367893465,1750956641741,-451.18539383,0.00021644,2]
[367893467,1750956641751,-223.0315306,0.00021716,2]
[367893469,1750956641761,-53908.9993228,0.00021778,2]
[367893471,1750956641770,-127342.63757267,0.0002178,2]
[367893473,1750956641780,-399.96592398,0.0002178,2]
[367893475,1750956641789,-640.0,0.000218,2]
[367893477,1750956641798,-200.0,0.0002182,4]
[367893479,1750956641808,-500.0,0.0002184,2]
[367893481,1750956641817,-500.0,0.0002184,2]
[367893483,1750956641826,-4340.28838817,0.00021866,6]
[367893486,1750956641836,-10000.0,0.0002188,4]
[367893488,1750956641845,-1085.0,0.000219,2]
[367893490,1750956641854,-1085.0,0.000219,2]
[367893491,1750956641863,-1085.0,0.000219,2]
[367893494,1750956641876,-1085.0,0.000219,2]
[367893496,1750956641886,-1085.0,0.000219,2]
[367893498,1750956641896,-1085.0,0.000219,2]
[367893500,1750956641905,-1085.0,0.000219,2]
[367893502,1750956641916,-1085.0,0.000219,2]
[367893504,1750956641925,-1085.0,0.000219,2]
[367893505,1750956641934,-1085.0,0.000219,2]
[367893508,1750956641944,-7516.11865376,0.000219,2]
[367893510,1750956641954,-203.93926588,0.00021917,2]
[367893511,1750956641965,-151.0,0.00021918,2]
[367893513,1750956641974,-151.0,0.00021918,2]
[367893515,1750956641984,-500.0,0.00021918,2]
[367893518,1750956641993,-500.0,0.00021918,2]
[367893520,1750956642003,-500.0,0.00021918,2]
[367893522,1750956642012,-500.0,0.00021918,2]
[367893523,1750956642022,-250.0,0.00021918,2]
[367893525,1750956642032,-500.0,0.00021918,2]
[367893527,1750956642042,-500.0,0.00021918,2]
[367893529,1750956642051,-500.0,0.00021918,2]
[367893531,1750956642061,-296.1956516,0.00021918,2]
[367893534,1750956642071,-151.0,0.0002192,5]
[367893536,1750956642080,-171.0,0.00021926,2]
[367893538,1750956642090,-198.72712322,0.00021947,5]
[367893540,1750956642099,-500.0,0.00021973,2]
[367893542,1750956642109,-500.0,0.00021973,2]
[367893544,1750956642119,-500.0,0.00021973,2]
[367893546,1750956642128,-500.0,0.00021973,2]
[367893548,1750956642138,-500.0,0.00021973,2]
[367893550,1750956642147,-500.0,0.00021973,2]
[367893552,1750956642157,-500.35372595,0.00021973,2]
[367893554,1750956642166,-362.21212231,0.00021973,2]
[367893556,1750956642176,-500.0,0.00021973,2]
[367893558,1750956642185,-500.0,0.00021973,2]
[367893560,1750956642194,-500.0,0.00021973,2]
[367893561,1750956642205,-500.0,0.00021973,2]
[367893564,1750956642215,-580.01754329,0.00021973,2]
[367893566,1750956642225,-500.0,0.00021973,2]
[367893568,1750956642234,-500.0,0.00021973,2]
[367893569,1750956642243,-500.0,0.00021973,2]
[367893571,1750956642253,-500.0,0.00021973,2]
[367893573,1750956642262,-500.0,0.00021973,2]
[367893575,1750956642271,-200.2532582,0.00021973,2]
[367893578,1750956642281,-500.0,0.00021973,2]
[367893580,1750956642290,-500.0,0.00021973,2]
[367893582,1750956642301,-500.0,0.00021973,2]
[367893584,1750956642311,-500.0,0.00021973,2]
[367893586,1750956642322,-500.0,0.00021973,2]
[367893588,1750956642331,-500.0,0.00021973,2]
[367893590,1750956642340,-500.0,0.00021973,2]
[367893592,1750956642351,-500.0,0.00021973,2]
[367893594,1750956642360,-333.4424912,0.00021973,2]
[367893596,1750956642369,-500.0,0.00021973,2]
[367893598,1750956642379,-500.0,0.00021973,2]
[367893600,1750956642388,-500.0,0.00021973,2]
[367893602,1750956642397,-600.0,0.00021973,2]
[367893604,1750956642406,-500.43078147,0.00021973,2]
[367893606,1750956642415,-500.0,0.00021973,2]
[367893608,1750956642425,-432.95481487,0.00021973,2]
[367893609,1750956642435,-500.0,0.00021973,2]
[367893611,1750956642446,-151.0,0.00021973,7]
[367893614,1750956642457,-151.0,0.00021973,7]
[367893616,1750956642466,-151.0,0.00021973,7]
[367893618,1750956642475,-151.0,0.00021973,7]
[367893620,1750956642484,-459.55804,0.00021973,7]
[367893621,1750956642494,-459.55804,0.00021973,7]
[367893623,1750956642503,-16803.00601553,0.00022,2]
[367893625,1750956642513,-1714.67675185,0.00022,2]
[367893628,1750956642522,-873517.30185319,0.00022,2]
[367893630,1750956642540,-3557.6952722,0.00022,2]
[367893633,1750956642552,-600.95344433,0.00022,2]
[367893636,1750956642571,-1031.38245891,0.00017593,2]
[367893638,1750956642586,-348.61754109,0.00017593,2]
[367893737,1750956643487,-2142.10252978,0.00017593,2]
[367893740,1750956643497,-425.23845507,0.00018996,2]
[367894024,1750956646470,-338.94080849,0.00018996,2]
[367894026,1750956646483,-2757.92326622,0.00018996,2]
[367894028,1750956646493,-3522.10252978,0.00020398,2]
[367894030,1750956646502,-3522.10252978,0.000218,2]
[367894032,1750956646511,-407.27560388,0.00022,2]
[367894034,1750956646523,-45842.51061688,0.00022,2]
[367894036,1750956646534,-2147.94771293,0.00022,2]
[367894576,1750956690507,152.54,0.000229,31]
[367894577,1750956690572,152.54,0.000229,31]
[367894578,1750956690625,152.54,0.000229,31]
[367894579,1750956690686,152.54,0.000229,31]
[367894580,1750956690753,152.54,0.000229,31]
[367894581,1750956690809,152.54,0.000229,31]
[367894582,1750956690874,152.54,0.000229,31]
[367894583,1750956690937,152.54,0.000229,31]
[367894584,1750956691000,152.54,0.000229,31]
[367894585,1750956691055,152.54,0.000229,31]
[367894586,1750956691149,152.54,0.000229,31]
[367894587,1750956691224,152.54,0.000229,31]
[367894588,1750956691285,152.54,0.000229,31]
[367894592,1750956895798,178.18568949,0.000222,69]
[367894593,1750957300678,152.55,0.000229,31]
[367894594,1750957300785,152.55,0.000229,31]
[367894595,1750957300855,152.55,0.000229,31]
[367894596,1750957300904,152.55,0.000229,31]
[367894597,1750957300966,152.55,0.000229,31]
[367894598,1750957301030,152.55,0.000229,31]
[367894599,1750957301088,152.55,0.000229,31]
[367894600,1750957301153,152.55,0.000229,31]
[367894601,1750957301214,152.55,0.000229,31]
[367894602,1750957301273,152.55,0.000229,31]
[367894603,1750957301330,152.55,0.000229,31]
[367894604,1750957301390,152.55,0.000229,31]
[367894605,1750957301449,152.55,0.000229,31]
[367894606,1750957301511,152.55,0.000229,31]
[367894608,1750957370211,270.389921,0.00013699,2]
[367894611,1750957567091,1000.0,0.00024,120]
[367894612,1750957568069,1000.0,0.00024,120]
[367894637,1750957832665,-160.0,0.00016279,2]
[367894638,1750957832675,-325.4814341,0.00016708,2]
[367894639,1750957832685,-641.04713627,0.00016708,2]
[367894646,1750957832941,-1867.99598243,0.00016708,2]
[367894648,1750957832950,-277.85746498,0.00016878,2]
[367894650,1750957832959,-270.34720692,0.00016978,2]
[367894708,1750957838642,-29.65279308,0.00016978,2]
[367894710,1750957838651,-261.1072069,0.00016978,2]
[367894716,1750957838693,-38.8927931,0.00016978,2]
[367894718,1750957838702,-1200.0,0.00016978,2]
[367894720,1750957838711,-300.0,0.00016978,2]
[367894722,1750957838720,-5000.0,0.00016979,2]
[367894723,1750957838729,-5000.0,0.00016979,2]
[367894725,1750957838738,-5000.0,0.00016979,2]
[367894727,1750957838748,-172.683504,0.00017016,2]
[367894730,1750957838758,-487.397722,0.00017456,2]
[367894732,1750957838768,-3038.20187198,0.000179,2]
[367894734,1750957838777,-24900.0,0.00017992,2]
[367894736,1750957838787,-3038.20187171,0.00018176,2]
[367894738,1750957838796,-164.8153706,0.00018447,2]
[367894740,1750957838805,-3038.20187171,0.00018452,2]
[367894742,1750957838814,-420.0,0.00018544,2]
[367894744,1750957838823,-420.0,0.00018544,2]
[367894746,1750957838832,-1200.0,0.00018636,2]
[367894748,1750957838841,-160.0,0.00018645,2]
[367894750,1750957838850,-214.88139422,0.00018645,2]
[367894752,1750957838860,-230.24506774,0.00018645,2]
[367894754,1750957838869,-160.0,0.00018645,2]
[367894756,1750957838878,-160.0,0.00018645,2]
[367894758,1750957838887,-160.0,0.00018645,2]
[367894760,1750957838896,-213.72380786,0.00018645,2]
[367894762,1750957838905,-160.0,0.00018645,2]
[367894764,1750957838915,-836.92866116,0.00018645,2]
[367894766,1750957838924,-160.0,0.00018645,2]
[367894768,1750957838933,-846.92323443,0.00018645,2]
[367894770,1750957838942,-12560.17507789,0.00018645,2]
[367894772,1750957838951,-500.0,0.00018727,2]
[367894774,1750957838960,-500.0,0.00018727,2]
[367894776,1750957838970,-500.0,0.00018727,2]
[367894778,1750957838979,-500.0,0.00018727,2]
[367894780,1750957838988,-500.0,0.00018727,2]
[367894782,1750957838998,-190.28936684,0.00018727,2]
[367894784,1750957839007,-155.95160573,0.00018727,2]
[367894786,1750957839016,-500.0,0.00018727,2]
[367894788,1750957839025,-500.0,0.00018727,2]
[367894790,1750957839034,-500.0,0.00018727,2]
[367894791,1750957839043,-500.0,0.00018727,2]
[367894794,1750957839053,-500.0,0.00018727,2]
[367894795,1750957839063,-500.0,0.00018727,2]
[367894798,1750957839072,-500.0,0.00018727,2]
[367894800,1750957839082,-500.0,0.00018727,2]
[367894801,1750957839091,-500.0,0.00018727,2]
[367894803,1750957839100,-500.0,0.00018727,2]
[367894805,1750957839109,-297.26068228,0.00018727,2]
[367894807,1750957839118,-623.86615606,0.00018727,2]
[367894809,1750957839128,-500.0,0.00018727,2]
[367894811,1750957839137,-500.0,0.00018727,2]
[367894813,1750957839146,-500.0,0.00018727,2]
[367894815,1750957839155,-500.0,0.00018727,2]
[367894817,1750957839164,-500.0,0.00018727,2]
[367894819,1750957839174,-500.0,0.00018727,2]
[367894821,1750957839183,-500.0,0.00018727,2]
[367894823,1750957839193,-500.0,0.00018727,2]
[367894825,1750957839202,-500.0,0.00018727,2]
[367894827,1750957839210,-500.0,0.00018727,2]
[367894829,1750957839220,-500.0,0.00018727,2]
[367894831,1750957839229,-500.0,0.00018727,2]
[367894833,1750957839238,-500.0,0.00018727,2]
[367894835,1750957839247,-500.0,0.00018727,2]
[367894837,1750957839257,-500.0,0.00018727,2]
[367894839,1750957839266,-500.0,0.00018727,2]
[367894841,1750957839276,-500.0,0.00018727,2]
[367894842,1750957839285,-500.0,0.00018727,2]
[367894843,1750957839295,-500.0,0.00018727,2]
[367894844,1750957839304,-500.0,0.00018727,2]
[367894845,1750957839313,-500.0,0.00018727,2]
[367894846,1750957839322,-500.0,0.00018727,2]
[367894847,1750957839332,-500.0,0.00018727,2]
[367894851,1750957839519,-500.0,0.00018727,2]
[367894853,1750957839530,-500.0,0.00018727,2]
[367894855,1750957839539,-500.0,0.00018727,2]
[367894857,1750957839548,-462.7840796,0.00018727,2]
[367894859,1750957839558,-500.0,0.00018727,2]
[367894861,1750957839567,-500.0,0.00018727,2]
[367894863,1750957839577,-500.0,0.00018727,2]
[367894865,1750957839586,-500.0,0.00018727,2]
[367894867,1750957839595,-500.0,0.00018727,2]
[367894869,1750957839605,-500.0,0.00018727,2]
[367894871,1750957839614,-500.0,0.00018727,2]
[367894873,1750957839624,-500.0,0.00018727,2]
[367894875,1750957839633,-500.0,0.00018727,2]
[367894877,1750957839642,-500.0,0.00018727,2]
[367894879,1750957839651,-500.0,0.00018727,2]
[367894881,1750957839660,-500.0,0.00018727,2]
[367894883,1750957839670,-500.0,0.00018727,2]
[367894885,1750957839679,-500.0,0.00018727,2]
[367894887,1750957839688,-500.0,0.00018727,2]
[367894889,1750957839698,-500.0,0.00018727,2]
[367894891,1750957839708,-500.0,0.00018727,2]
[367894893,1750957839717,-500.0,0.00018727,2]
[367894895,1750957839726,-500.0,0.00018727,2]
[367894897,1750957839735,-500.0,0.00018727,2]
[367894899,1750957839744,-500.0,0.00018727,2]
[367894901,1750957839754,-500.0,0.00018727,2]
[367894903,1750957839763,-362.2398999,0.00018727,2]
[367894905,1750957839772,-500.0,0.00018727,2]
[367894907,1750957839782,-500.0,0.00018727,2]
[367894909,1750957839792,-500.0,0.00018727,2]
[367894911,1750957839801,-500.0,0.00018727,2]
[367894912,1750957839810,-500.0,0.00018727,2]
[367894914,1750957839819,-500.0,0.00018727,2]
[367894916,1750957839828,-500.0,0.00018727,2]
[367894918,1750957839837,-500.0,0.00018727,2]
[367894920,1750957839846,-500.0,0.00018727,2]
[367894922,1750957839856,-500.0,0.00018727,2]
[367894924,1750957839865,-500.0,0.00018727,2]
[367894926,1750957839875,-500.0,0.00018727,2]
[367894928,1750957839884,-500.0,0.00018727,2]
[367894930,1750957839894,-500.0,0.00018727,2]
[367894932,1750957839903,-500.0,0.00018727,2]
[367894934,1750957839912,-500.0,0.00018727,2]
[367894936,1750957839921,-500.0,0.00018727,2]
[367894938,1750957839931,-500.0,0.00018727,2]
[367894940,1750957839940,-500.0,0.00018727,2]
[367894942,1750957839949,-500.0,0.00018727,2]
[367894944,1750957839959,-500.0,0.00018727,2]
[367894946,1750957839967,-500.0,0.00018727,2]
[367894948,1750957839977,-500.0,0.00018727,2]
[367894950,1750957839987,-500.0,0.00018727,2]
[367894952,1750957839996,-500.0,0.00018727,2]
[367894954,1750957840005,-500.0,0.00018727,2]
[367894956,1750957840015,-500.0,0.00018727,2]
[367894958,1750957840025,-500.0,0.00018727,2]
[367894960,1750957840034,-500.0,0.00018727,2]
[367894962,1750957840044,-3038.20187171,0.00018728,2]
[367894964,1750957840054,-3038.20187171,0.00019003,2]
[367894966,1750957840063,-212.153573,0.00019178,2]
[367894968,1750957840072,-3038.20187171,0.00019279,2]
[367894970,1750957840081,-500.0,0.000193,2]
[367894972,1750957840090,-501.13814084,0.0001936,2]
[367894974,1750957840099,-500.0,0.0001936,2]
[367894976,1750957840109,-501.01948852,0.0001936,2]
[367894978,1750957840119,-500.0,0.0001936,2]
[367894980,1750957840128,-500.0,0.0001945,2]
[367894982,1750957840138,-3038.20187171,0.00019555,2]
[367894984,1750957840147,-274.68275614,0.00019762,2]
[367894986,1750957840157,-500.0,0.00019778,2]
[367894988,1750957840167,-8334.897483,0.00019808,2]
[367894990,1750957840176,-230.84,0.00019813,3]
[367894992,1750957840185,-5000.0,0.00019823,2]
[367894994,1750957840194,-200.0,0.00019823,2]
[367894996,1750957840204,-200.0,0.00019823,2]
[367894998,1750957840214,-500.0,0.00019823,2]
[367895000,1750957840224,-200.0,0.00019823,2]
[367895002,1750957840233,-200.0,0.00019823,2]
[367895004,1750957840242,-500.0,0.00019823,2]
[367895006,1750957840251,-200.0,0.00019823,2]
[367895008,1750957840262,-500.0,0.00019823,2]
[367895010,1750957840271,-25000.0,0.00019823,2]
[367895012,1750957840281,-500.0,0.00019823,2]
[367895014,1750957840290,-200.0,0.00019823,2]
[367895016,1750957840299,-500.0,0.00019823,2]
[367895018,1750957840309,-200.0,0.00019823,2]
[367895021,1750957840318,-500.0,0.00019823,2]
[367895024,1750957840327,-200.0,0.00019823,2]
[367895026,1750957840336,-500.0,0.00019823,2]
[367895028,1750957840345,-500.0,0.00019823,2]
[367895031,1750957840355,-200.0,0.00019823,2]
[367895033,1750957840367,-207.4,0.00019823,2]
[367895035,1750957840376,-500.0,0.00019823,2]
[367895037,1750957840385,-200.0,0.00019823,2]
[367895039,1750957840395,-200.0,0.00019823,2]
[367895041,1750957840404,-500.0,0.00019823,2]
[367895043,1750957840415,-200.0,0.00019823,2]
[367895045,1750957840423,-500.0,0.00019823,2]
[367895047,1750957840433,-265.60752438,0.00019823,2]
[367895049,1750957840442,-500.0,0.00019823,2]
[367895051,1750957840452,-500.0,0.00019823,2]
[367895053,1750957840462,-500.0,0.00019823,2]
[367895055,1750957840471,-500.0,0.00019823,2]
[367895057,1750957840481,-500.0,0.00019823,2]
[367895059,1750957840491,-500.0,0.00019823,2]
[367895061,1750957840500,-500.0,0.00019823,2]
[367895063,1750957840510,-3038.20187171,0.00019831,2]
[367895065,1750957840519,-151.0,0.000199,2]
[367895067,1750957840530,-500.0,0.00019908,2]
[367895069,1750957840539,-18449.25750608,0.0002,2]
[367895071,1750957840548,-151.0,0.000201,3]
[367895073,1750957840558,-3038.20187171,0.00020107,2]
[367895075,1750957840567,-168.0,0.00020119,2]
[367895077,1750957840577,-270.389921,0.00020187,2]
[367895079,1750957840586,-587.0,0.00020255,2]
[367895081,1750957840595,-587.0,0.00020255,2]
[367895083,1750957840605,-151.0,0.000203,4]
[367895085,1750957840614,-5000.0,0.00020371,2]
[367895087,1750957840624,-3038.20187171,0.00020383,3]
[367895089,1750957840634,-151.0,0.000205,4]
[367895092,1750957840644,-1316.0,0.00020561,2]
[367895094,1750957840654,-3871.85,0.000206,2]
[367895095,1750957840664,-3038.20187171,0.00020659,3]
[367895098,1750957840674,-529.74,0.00020659,2]
[367895100,1750957840684,-168.0,0.00020688,2]
[367895102,1750957840693,-151.0,0.000207,4]
[367895104,1750957840703,-168.0,0.00020761,2]
[367895106,1750957840711,-154.855591,0.00020786,4]
[367895107,1750957840721,-5000.0,0.00020919,2]
[367895109,1750957840731,-3038.20187171,0.00020934,4]
[367895111,1750957840741,-168.0,0.00020949,2]
[367895113,1750957840750,-2000.0,0.00021,2]
[367895115,1750957840759,-151.0,0.00021,4]
[367895117,1750957840769,-500.41164183,0.00021042,2]
[367895119,1750957840778,-500.0,0.00021138,2]
[367895121,1750957840788,-215.0738,0.00021192,2]
[367895123,1750957840797,-2000.0,0.000212,2]
[367895125,1750957840806,-151.0,0.000212,4]
[367895127,1750957840815,-3038.20187171,0.0002121,4]
[367895129,1750957840824,-966.0,0.00021305,2]
[367895131,1750957840833,-654.0,0.00021305,2]
[367895133,1750957840844,-2161.0,0.00021305,2]
[367895136,1750957840853,-279.0,0.00021307,2]
[367895138,1750957840863,-151.0,0.000214,3]
[367895140,1750957840873,-5000.0,0.00021467,2]
[367895142,1750957840884,-3038.20187171,0.00021486,5]
[367895144,1750957840893,-2000.0,0.000215,2]
[367895146,1750957840902,-154.855591,0.00021501,2]
[367895148,1750957840912,-1363.240215,0.0002156,4]
[367895150,1750957840922,-151.0,0.000216,4]
[367895152,1750957840931,-800.0,0.00021665,2]
[367895154,1750957840941,-152551.6151328,0.000217,2]
[367895156,1750957840951,-171.0,0.0002174,2]
[367895158,1750957840962,-3038.20187171,0.00021762,5]
[367895160,1750957840971,-500.0,0.00021779,2]
[367895162,1750957840981,-500.0,0.00021779,2]
[367895164,1750957840990,-500.0,0.00021779,2]
[367895166,1750957840999,-500.0,0.00021779,2]
[367895168,1750957841008,-500.0,0.00021779,2]
[367895170,1750957841017,-500.0,0.00021779,2]
[367895172,1750957841026,-271.24798728,0.00021779,2]
[367895174,1750957841035,-500.0,0.00021779,2]
[367895176,1750957841045,-562.79533669,0.00021779,2]
[367895178,1750957841060,-399.96592398,0.0002178,2]
[367895180,1750957841070,-127342.63757267,0.0002178,2]
[367895182,1750957841080,-151.0,0.000218,4]
[367895184,1750957841089,-151.0,0.000218,3]
[367895186,1750957841098,-151.0,0.00021857,2]
[367895188,1750957841107,-500.0,0.00021866,2]
[367895190,1750957841116,-500.0,0.00021866,2]
[367895192,1750957841125,-500.0,0.00021873,2]
[367895194,1750957841135,-500.0,0.00021873,2]
[367895196,1750957841144,-500.0,0.00021873,2]
[367895198,1750957841153,-500.0,0.00021873,2]
[367895200,1750957841162,-198.72712322,0.00021884,2]
[367895202,1750957841171,-3871.85,0.000219,2]
[367895204,1750957841181,-1235.38339822,0.000219,2]
[367895206,1750957841190,-640.0,0.000219,2]
[367895208,1750957841199,-7516.11865376,0.000219,2]
[367895210,1750957841208,-360.44557691,0.00021914,2]
[367895212,1750957841217,-500.0,0.00021918,2]
[367895214,1750957841227,-500.0,0.00021918,2]
[367895216,1750957841236,-500.0,0.00021918,2]
[367895218,1750957841245,-500.0,0.00021918,2]
[367895220,1750957841255,-500.0,0.00021918,2]
[367895222,1750957841264,-500.0,0.00021918,2]
[367895224,1750957841273,-500.0,0.00021918,2]